[Event "Istanbul Open 2017"]
[Site "Istanbul"]
[Date "2017.09.15"]
[Round "6"]
[White "Acarbay, Algi"]
[Black "Soyunlu, Narmin"]
[Result "1/2-1/2"]
[ECO "C04"]
[WhiteElo "1920"]
[BlackElo "2059"]
[Annotator "NA RC"]
[PlyCount "191"]
[EventDate "2017.??.??"]
[EventType "swiss"]
[EventCountry "TUR"]
[SourceTitle "playchess.com"]
[Source "ChessBase"]
[SourceQuality "1"]
[TimeControl "5400+30"]

{[%evp 8,187,31,36,33,29,26,29,32767,32767,32767,32767,36,42,58,31,75,78,68,12,60,0,0,-3,47,27,37,6,35,20,22,5,20,2,46,20,38,25,35,16,41,28,20,44,33,25,36,8,12,21,108,12,106,18,104,93,86,83,91,8,19,0,0,0,40,22,29,40,27,38,101,113,118,8,129,32767,32767,32767,32767,32767,32767,32767,32767,32767,32767,32767,0,0,0,0,0,-8,0,-102,-108,-99,-102,-168,-189,-183,-168,-295,-183,-176,32767,32767,32767,32767,32767,32767,32767,32767,-148,-264,32767,32767,32767,32767,-415,-383,-1031,-2237,32767,32767,32767,32767,32767,32767,32767,32767,32767,32767,-160,-408,-514,-2218,-160,-531,0,-168,-1046,-4641,-3955,32767,32767,32767,32767,-6123,-29966,-29975,-29966,-29971,-8,-29985,-29974,-29962,-29971,-29979,-29977,32767,32767,32767,32767,32767,32767,32767,-29977,-29978,-29975,-29974,-29976,-29974,0,0,0,-29,0,0,0,0,0,0]} 1. e4 {[%emt 0:00:30]} e6 {[%emt 0:01:00]} 2. d4 {[%emt 0:00:00]} d5 {[%emt 0:00:00]} 3. Nd2 {[%emt 0:01:00]} Nc6 {[%emt 0:00:00]} 4. Ngf3 {[%emt 0:00:30]} Nf6 {[%emt 0:00:30]} 5. e5 {[%emt 0:00:30]} Nd7 {[%emt 0:00:30]} 6. Bd3 {[%emt 0:00:30]} Nb4 {[%emt 0:00:30]} 7. Be2 {[%emt 0:01:30]} c5 {[%emt 0:00:00]} 8. c3 {[%emt 0:00:30]} Nc6 {[%emt 0:00:00]} 9. O-O {[%emt 0:00:30]} cxd4 {[%emt 0:01:30]} 10. cxd4 {[%emt 0:00:00]} f6 {[%emt 0:05:30] C04: French Tarrasch: 3...Nc6} 11. exf6 {[%emt 0:01:00]} Qxf6 {[%emt 0:00:30]} (11... Nxf6 12. Nb3 Bd6 13. Bg5 O-O 14. Bh4 Bd7 15. Bg3 Bxg3 16. hxg3 Ne4 17. Re1 Be8 18. Bd3 Bg6 19. Bxe4 dxe4 20. Nh4 Bf5 {1-0 (67) Rublevsky,S (2692)-Demidov,M (2507) Cheboksary 2016}) 12. Nb3 {[%emt 0:00:30]} Bd6 {[%emt 0:02:00] LiveBook: 3 Games} 13. Bd3 {[%emt 0:11:30]} ({White should play} 13. Bg5 $14 Qf7 14. Bh4) 13... h6 {[%emt 0:06:30]} 14. Re1 {[%emt 0:11:30]} O-O {[%emt 0:01:30]} 15. Bb1 {[%emt 0:02:30]} Rd8 {[%emt 0:06:30]} (15... Rf7 $11) 16. Qd3 {[%emt 0:04:30]} Nf8 {[%emt 0:04:30]} 17. a3 $146 {[%emt 0:05:30]} ({Find the theoretical novelty and annotate with similar games:} 17. Qe3 Bd7 18. Ne5 Be8 19. a3 {1-0 (40) Perekhozhuk,M (1569)-Hoppe,A (1677) Magdeburg 2013}) 17... Bd7 {[%emt 0:02:30]} 18. Nc5 {[%emt 0:08:30]} Bxc5 {[%emt 0:07:30]} 19. dxc5 {[%emt 0:00:00]} Be8 {[%emt 0:01:30]} 20. Qe3 {[%emt 0:04:00]} Bf7 {[%emt 0:23:30]} 21. Qf4 {[%emt 0:03:30]} Nd7 {[%emt 0:03:30]} 22. Qxf6 $1 {[%emt 0:04:30]} gxf6 {[%emt 0:04:30]} 23. Bxh6 {[%emt 0:04:30]} Nxc5 {[%emt 0:00:30]} 24. b4 {[%emt 0:00:30]} Nb3 {[%emt 0:01:30]} 25. Ra2 {[%emt 0:00:30]} e5 $1 {[%emt 0:08:30]} 26. Rb2 {[%emt 0:01:30]} Nbd4 {[%emt 0:03:14]} 27. Nxd4 {[%emt 0:00:30]} Nxd4 {[%emt 0:00:30]} 28. Rd2 {[%emt 0:08:30]} Ne6 {[%emt 0:02:39]} (28... Rac8 $11) 29. Red1 {[%emt 0:04:30]} ({White should try} 29. Rd3 $16) 29... Nc7 {[%emt 0:09:07] [#]} (29... Bh5 $11 {keeps the balance.} 30. Re1 b6) 30. Bf5 {[%emt 0:08:30]} (30. Rd3 $1 $16 {[%cal Rd3g3]} e4 31. Rg3+ Kh7 32. Bc1) 30... Bh5 {[%emt 0:04:25]} (30... Be8 $1 $11) 31. Rc1 {[%emt 0:00:57]} Nb5 {[%emt 0:00:01]} 32. Rd3 {[%emt 0:03:16]} Kf7 {[%emt 0:00:49]} 33. a4 {[%emt 0:03:22]} ({Better is} 33. Rc5 $16 Bg6 34. Bxg6+ (34. Rxb5 Bxf5 35. Rd1 Kg6 $15) (34. Rcxd5 Nd4 $17) (34. Rdxd5 $2 Bxf5 35. Rxb5 b6 $19) 34... Kxg6 35. Rxb5 Kxh6 36. Rbxd5 (36. Rxb7 d4 $14) 36... Rxd5 37. Rxd5) 33... Bg6 {[%emt 0:00:31]} 34. Bxg6+ {[%emt 0:04:56]} Kxg6 {[%emt 0:00:02]} 35. Be3 {[%emt 0:00:19]} e4 {[%emt 0:02:42]} 36. Rdd1 {[%emt 1:46:09]} d4 {[%emt 1:47:19]} 37. axb5 {[%emt 0:00:30]} dxe3 {[%emt 0:00:30]} 38. fxe3 {[%emt 0:00:30]} Rxd1+ {[%emt 0:00:30]} (38... Rd3 $11 {remains equal.}) 39. Rxd1 {[%emt 0:00:30]} Rc8 {[%emt 0:00:30]} 40. Kf2 {[%emt 0:00:30]} (40. Ra1 $16) 40... Rc3 {[%emt 0:00:30]} (40... Rc2+ $11 {remains equal.} 41. Kg3 b6) 41. Rd4 {[%emt 0:00:30]} Kf5 {[%emt 0:00:29]} 42. h4 {[%emt 0:00:55]} Rc2+ {[%emt 0:00:04]} 43. Kg3 {[%emt 0:00:07]} Re2 {[%emt 0:00:36]} 44. Rd7 {[%emt 0:00:41]} Rxe3+ {[%emt 0:00:07]} 45. Kf2 {[%emt 0:00:04]} Rb3 {[%emt 0:00:18]} 46. Rxb7 {[%emt 0:00:20]} Rxb4 {[%emt 0:01:09]} 47. Rxa7 {[%emt 0:01:07]} Rxb5 {[%emt 0:00:49]} 48. h5 {[%emt 0:01:09]} Kg5 {[%emt 0:00:38]} 49. Re7 {[%emt 0:00:34]} f5 {[%emt 0:00:20]} 50. Kg3 {[%emt 0:00:46]} (50. h6 $11) 50... Rb3+ {[%emt 0:00:08]} ({But not} 50... Kxh5 $6 51. Kf4 $11) 51. Kf2 {[%emt 0:00:07]} Kxh5 {[%emt 0:00:24]} 52. Rh7+ {[%emt 0:00:35]} (52. Re8 $17 {was called for.}) 52... Kg5 {[%emt 0:00:12]} 53. Rg7+ {[%emt 0:00:08]} Kf6 {[%emt 0:01:21]} 54. Ra7 {[%emt 0:00:35]} (54. Rg8 {was the only chance.}) 54... f4 {[%emt 0:01:02]} 55. Ra2 {[%emt 0:00:53]} Kf5 {[%emt 0:00:14]} 56. Ra8 {[%emt 0:00:36]} Rb2+ {[%emt 0:00:01]} 57. Kf1 {[%emt 0:00:06]} Rb1+ {[%emt 0:00:10]} 58. Ke2 {[%emt 0:00:19]} Rb2+ {[%emt 0:00:09]} 59. Kf1 {[%emt 0:00:07]} Ke5 {[%emt 0:00:51]} 60. Ra4 {[%emt 0:00:26]} (60. Rd8 $142) 60... Rb1+ {[%emt 0:00:48]} 61. Ke2 {[%emt 0:00:05]} Rb2+ {[%emt 0:00:01]} 62. Kf1 {[%emt 0:00:03]} Rd2 {[%emt 0:00:48]} 63. Rb4 {[%emt 0:00:21]} e3 {[%emt 0:00:30]} 64. Ra4 {[%emt 0:00:53]} Rd1+ {[%emt 0:01:01]} 65. Ke2 {[%emt 0:00:05]} Rd2+ {[%emt 0:00:01]} 66. Kf1 {[%emt 0:00:03]} Rf2+ {[%emt 0:00:27]} 67. Kg1 {[%emt 0:00:03]} Kf5 {[%emt 0:01:07]} 68. Ra8 $19 {[%emt 0:00:30]} Rd2 {[%emt 0:00:37]} 69. Kf1 {[%emt 0:00:30]} Ke4 {[%emt 0:00:36]} 70. Ra4+ $2 {[%emt 0:00:30]} (70. Rg8 $17) 70... Rd4 {[%emt 0:00:19]} 71. Ra8 $1 {[%emt 0:01:40]} Kd3 $2 {[%emt 0:00:24]} (71... Rd1+ $19 {and Black stays clearly on top.} 72. Ke2 Rd2+ 73. Kf1 Rf2+ 74. Kg1 Kd5 75. Ra5+ Kd4 76. Ra4+ Ke5 77. Ra5+ Kd4) 72. Ra3+ $2 {[%emt 0:00:09]} (72. Ke1 $17 {nothing else works.}) 72... Ke4 $2 {[%emt 0:00:37]} (72... Kd2 $19 73. Ra2+ Kc3) 73. Ra8 {[%emt 0:00:09]} Rc4 {[%emt 0:00:01]} 74. Rd8 {[%emt 0:01:25]} Rb4 {[%emt 0:01:02]} 75. Rd7 {[%emt 0:01:36]} Rb1+ {[%emt 0:00:04]} 76. Ke2 {[%emt 0:00:06]} Rb2+ {[%emt 0:00:03]} 77. Kf1 {[%emt 0:00:01]} Rf2+ {[%emt 0:00:08]} 78. Kg1 {[%emt 0:00:08]} f3 {[%emt 0:01:12]} 79. gxf3+ {[%emt 0:00:50]} Kxf3 $2 {[%emt 0:00:07]} (79... Rxf3 {NOTEXT} 80. Re7+ Kd3 81. Kg2 Rf2+ 82. Kg3 Rf1 83. Rd7+ Ke2 84. Re7 Kd2 85. Rd7+ Ke1 86. Kg2 e2 87. Rd5 Rf4 88. Rd7 Rg4+ 89. Kh3 Rg5 90. Kh2 Kf2 91. Rf7+ Ke3 92. Re7+ Kf3 93. Re8 Rg4 94. Kh3 Re4 95. Rxe4 Kxe4 96. Kh4 e1=Q+ 97. Kg5 Ke5 98. Kg4 Qe2+ 99. Kg3 Kf5 100. Kh3 Kf4 101. Kh4 Qh2#) 80. Ra7 $2 {[%emt 0:01:48]} (80. Rf7+ $11 Ke2 81. Ra7) 80... Rb2 {[%emt 0:00:20]} 81. Rf7+ {[%emt 0:00:31] [#]} Ke2 $1 {[%emt 0:00:05]} 82. Rf1 {[%emt 0:00:46]} Rd2 {[%emt 0:00:11]} 83. Kg2 {[%emt 0:00:25]} Rd1 {[%emt 0:00:48]} 84. Kg1 {[%emt 0:00:30]} Rd2 {[%emt 0:00:30]} 85. Kg2 {[%emt 0:00:30]} Rd1 {[%emt 0:00:02]} 86. Rf7 {[%emt 0:00:29]} Rd5 {[%emt 0:00:19]} 87. Rg7 {[%emt 0:00:32]} Rf5 {[%emt 0:00:28]} 88. Rg6 {[%emt 0:00:30]} Ke1 {[%emt 0:00:26]} 89. Ra6 {[%emt 0:00:19] [#]} Rg5+ $11 {[%emt 0:02:50]} (89... Rd5 $1 {NOTEXT} 90. Ra1+ Rd1 91. Ra3 e2 92. Ra2 Rd8 93. Ra1+ Kd2 94. Ra2+ Ke3 95. Ra3+ Kd2 96. Ra2+ Ke3 97. Ra3+ Rd3 98. Ra1 Rd1 99. Ra3+ Kd4 100. Ra4+ Kc3 101. Ra3+ Kb4 102. Re3 e1=Q 103. Rxe1 Rxe1 104. Kf3 Kc3 105. Kg4 Re5 106. Kf4 Kd4 107. Kf3 Re4 108. Kf2 Rf4+ 109. Ke2 Rf8 110. Kd2 Rf2+ 111. Ke1 Ke3 112. Kd1 Rg2 113. Kc1 Kd3 114. Kb1 Kc3 115. Ka1 Kb3 116. Kb1 Rg1#) 90. Kf3 {[%emt 0:00:15]} Re5 {[%emt 0:00:42]} (90... e2 $5 91. Ra1+ $8 Kd2 92. Ra2+ Kd1 93. Rxe2 Rf5+ 94. Ke4 Kxe2 95. Kxf5 $11) 91. Ra1+ {[%emt 0:00:41]} Kd2 {[%emt 0:00:01]} 92. Ra2+ {[%emt 0:00:06]} Kd3 {[%emt 0:00:21]} 93. Ra3+ {[%emt 0:00:09]} Kd2 {[%emt 0:00:50]} 94. Ra2+ {[%emt 0:00:04]} Kd1 {[%emt 0:00:25]} 95. Ra1+ {[%emt 0:00:09]} Kc2 {[%emt 0:00:10]} 96. Ra2+ {[%emt 0:00:13]} 1/2-1/2

[Event "Istanbul Open 2017"]
[Site "Istanbul"]
[Date "2017.09.15"]
[Round "6"]
[White "Ozturk, Polat"]
[Black "Tarakci, Efdal"]
[Result "1/2-1/2"]
[ECO "D03"]
[WhiteElo "1763"]
[BlackElo "1714"]
[Annotator "NA RC"]
[PlyCount "127"]
[EventDate "2017.??.??"]
[EventType "swiss"]
[EventCountry "TUR"]
[SourceTitle "playchess.com"]
[Source "ChessBase"]
[SourceQuality "1"]
[TimeControl "5400+30"]

1. d4 Nf6 2. Bg5 d5 3. Nd2 Bf5 4. Ngf3 h6 5. Bf4 g5 6. Bg3 Nh5 7. e3 Nxg3 8. fxg3 Bg7 9. Bd3 Bxd3 10. cxd3 Nc6 11. O-O O-O 12. Nb3 e5 13. dxe5 Nxe5 14. Nxe5 Bxe5 15. d4 Bg7 16. Qg4 Qc8 17. Qxc8 Raxc8 18. Rf5 c6 19. Raf1 Rce8 20. Kf2 Re6 21. Nc5 Re7 22. Re1 Rfe8 23. Nb3 Kh7 24. g4 Kg6 25. Rf3 Re4 26. Nd2 R4e6 27. Rd1 Bf8 28. Nb3 Bd6 29. Ke2 Bf4 30. Rd3 R6e7 31. g3 Bd6 32. Rc3 h5 33. gxh5+ Kxh5 34. h3 g4 35. Rf5+ Kg6 36. hxg4 Bxg3 37. Rf3 Bd6 38. Rc1 Rh8 39. Rcf1 Rh2+ 40. Kd3 Bc7 41. R1f2 Rxf2 42. Rxf2 Kg5 43. Nd2 Kxg4 44. e4 Bf4 45. e5 Bxd2 46. Kxd2 f5 47. Ke3 c5 48. Rg2+ Kh3 49. Rg5 cxd4+ 50. Kxd4 f4 51. Kxd5 f3 52. e6 f2 53. Rf5 Kg2 54. Kd6 {[%emt 1:41:04]} Re8 {[%emt 1:56:32]} 55. Kd7 {[%emt 0:00:30]} Rg8 {[%emt 0:00:00]} 56. e7 {[%emt 0:00:08]} f1=Q {[%emt 0:00:00]} 57. Rxf1 {[%emt 0:00:37]} Kxf1 {[%emt 0:00:14]} 58. e8=Q {[%emt 0:00:33]} Rxe8 {[%emt 0:00:30]} 59. Kxe8 {[%emt 0:00:31]} Ke2 {[%emt 0:00:30]} 60. Kd7 {[%emt 0:00:30]} Kd3 {[%emt 0:00:30]} 61. Kc7 {[%emt 0:01:21]} b5 {[%emt 0:01:32]} 62. Kc6 {[%emt 0:00:43]} Kc4 {[%emt 0:00:38]} 63. b3+ {[%emt 0:00:28]} Kb4 {[%emt 0:00:17]} 64. a3+ {[%emt 0:00:17]} 1/2-1/2

[Event "Istanbul Open 2017"]
[Site "Istanbul"]
[Date "2017.09.15"]
[Round "6"]
[White "Portakalci, Yusuf"]
[Black "Ozbag, Berat"]
[Result "0-1"]
[ECO "A03"]
[WhiteElo "1671"]
[BlackElo "1638"]
[Annotator "NA RC"]
[PlyCount "62"]
[EventDate "2017.??.??"]
[EventType "swiss"]
[EventCountry "TUR"]
[SourceTitle "playchess.com"]
[Source "ChessBase"]
[SourceQuality "1"]
[TimeControl "5400+30"]

1. f4 {[%emt 0:02:30]} d5 {[%emt 0:01:00]} 2. Nf3 {[%emt 0:00:30]} g6 {[%emt 0:00:30]} 3. g3 {[%emt 0:02:30]} Bg7 {[%emt 0:00:00]} 4. Bg2 {[%emt 0:00:30]} Bg4 {[%emt 0:02:00]} 5. d3 {[%emt 0:05:30]} Bxf3 {[%emt 0:00:30]} 6. Bxf3 {[%emt 0:00:30]} c6 {[%emt 0:00:00]} 7. c3 {[%emt 0:01:30]} Nf6 {[%emt 0:01:00]} 8. O-O {[%emt 0:03:30]} Nbd7 {[%emt 0:00:30]} 9. Qc2 {[%emt 0:12:30]} e5 {[%emt 0:00:30]} 10. fxe5 {[%emt 0:04:30]} Nxe5 {[%emt 0:01:30]} 11. Bg2 {[%emt 0:00:30]} O-O {[%emt 0:00:30]} 12. Bf4 {[%emt 0:03:30]} Re8 {[%emt 0:04:30]} 13. Nd2 {[%emt 0:03:30]} Qb6+ {[%emt 0:04:30]} 14. d4 {[%emt 0:00:30]} Neg4 {[%emt 0:00:30]} 15. e4 {[%emt 0:00:30]} dxe4 {[%emt 0:00:30]} 16. h3 {[%emt 0:00:30]} e3 {[%emt 0:00:30]} 17. Nc4 {[%emt 0:00:30]} Qa6 {[%emt 0:00:30]} 18. Nd6 {[%emt 0:00:30]} e2 {[%emt 0:00:30]} 19. Nxe8 {[%emt 0:00:30]} Rxe8 {[%emt 0:00:30]} 20. Rfe1 {[%emt 0:00:30]} Nh6 {[%emt 0:00:30]} 21. g4 {[%emt 0:00:30]} Nd5 {[%emt 0:00:30]} 22. Bxd5 {[%emt 0:00:30]} cxd5 {[%emt 0:00:30]} 23. Qd2 {[%emt 0:00:30]} g5 {[%emt 0:00:30]} 24. Be3 {[%emt 0:00:30]} f5 {[%emt 0:00:30]} 25. gxf5 {[%emt 0:12:30]} Nxf5 {[%emt 0:33:30]} 26. Rxe2 {[%emt 0:01:30]} Nh4 {[%emt 0:09:30]} 27. Rf1 {[%emt 0:03:30]} Qe6 {[%emt 0:02:30]} 28. Rff2 {[%emt 0:02:30]} Qxh3 {[%emt 0:03:30]} 29. Bxg5 {[%emt 0:04:30]} Qg4+ {[%emt 0:01:30]} 30. Kh1 {[%emt 0:02:30]} Qh3+ {[%emt 0:02:30]} 31. Rh2 {[%emt 0:02:30]} Qf1# {[%emt 0:00:30]} 0-1

[Event "Istanbul Open 2017"]
[Site "Istanbul"]
[Date "2017.09.15"]
[Round "6"]
[White "Aydin, Ali Umut"]
[Black "Bagci, Hikmet"]
[Result "1/2-1/2"]
[ECO "B98"]
[WhiteElo "1627"]
[BlackElo "1706"]
[Annotator "NA RC"]
[PlyCount "58"]
[EventDate "2017.??.??"]
[EventType "swiss"]
[EventCountry "TUR"]
[SourceTitle "playchess.com"]
[Source "ChessBase"]
[SourceQuality "1"]
[TimeControl "5400+30"]

1. e4 {[%emt 0:00:30]} c5 {[%emt 0:01:00]} 2. Nf3 {[%emt 0:00:00]} d6 {[%emt 0:00:30]} 3. d4 {[%emt 0:00:00]} cxd4 {[%emt 0:00:00]} 4. Nxd4 {[%emt 0:00:00]} Nf6 {[%emt 0:00:00]} 5. Nc3 {[%emt 0:00:00]} a6 {[%emt 0:01:30]} 6. Bg5 {[%emt 0:00:30]} e6 {[%emt 0:02:30]} 7. f4 {[%emt 0:00:00]} Be7 {[%emt 0:00:30]} 8. Qf3 {[%emt 0:02:00]} Qc7 {[%emt 0:00:30]} 9. O-O-O {[%emt 0:04:30]} O-O {[%emt 0:08:30]} 10. g4 {[%emt 0:04:30]} Nc6 {[%emt 0:03:30]} 11. Nxc6 {[%emt 0:01:30]} bxc6 {[%emt 0:00:30]} 12. h4 {[%emt 0:05:30]} Rb8 {[%emt 0:14:30]} 13. Bxf6 {[%emt 0:08:30]} Bxf6 {[%emt 0:00:30]} 14. g5 {[%emt 0:01:30]} Be7 {[%emt 0:01:30]} 15. h5 {[%emt 0:20:30]} f6 {[%emt 0:01:30]} 16. g6 {[%emt 0:12:30]} h6 {[%emt 0:01:30]} 17. f5 {[%emt 0:01:30]} Qb6 {[%emt 0:04:30]} 18. b3 {[%emt 0:04:30]} Rd8 {[%emt 0:04:30]} 19. fxe6 {[%emt 0:02:30]} Qa5 {[%emt 0:02:30]} 20. Rd4 {[%emt 0:03:30]} Qe5 {[%emt 0:01:30]} 21. Rd3 {[%emt 0:04:30]} a5 {[%emt 0:01:30]} 22. Qg3 {[%emt 0:00:30]} Qc5 {[%emt 0:01:30]} 23. Qe3 {[%emt 0:04:22]} Qa3+ {[%emt 0:00:30]} 24. Kb1 {[%emt 0:00:27]} a4 {[%emt 0:01:30]} 25. Qa7 {[%emt 0:00:09]} Rb7 {[%emt 0:01:30]} 26. Qxa4 {[%emt 0:00:14]} Qc5 {[%emt 0:02:30]} 27. Qd4 {[%emt 0:00:42]} Qa5 {[%emt 0:00:30]} 28. Qa4 {[%emt 0:00:44]} Qc5 {[%emt 0:00:30]} 29. Qd4 {[%emt 0:01:16]} Qa5 {[%emt 0:00:00]} 1/2-1/2

[Event "Istanbul Open 2017"]
[Site "Istanbul"]
[Date "2017.09.15"]
[Round "6"]
[White "Kabadayi, Suleyman Arda"]
[Black "Unalan, Kaan"]
[Result "1-0"]
[ECO "C64"]
[WhiteElo "1579"]
[BlackElo "1565"]
[Annotator "NA RC"]
[PlyCount "109"]
[EventDate "2017.??.??"]
[EventType "swiss"]
[EventCountry "TUR"]
[SourceTitle "playchess.com"]
[Source "ChessBase"]
[SourceQuality "1"]
[TimeControl "5400+30"]

1. e4 e5 2. Nf3 Nc6 3. Bb5 Bc5 4. O-O Nd4 5. Nxd4 Bxd4 6. c3 Bb6 7. d4 c6 8. Bc4 d6 9. dxe5 dxe5 10. Qxd8+ Bxd8 11. Be3 Nf6 12. f3 Bb6 13. Bf2 Ke7 14. Nd2 Be6 15. Bxe6 Bxf2+ 16. Kxf2 Kxe6 17. Rad1 Rad8 18. Nc4 b6 19. Ke3 h5 20. Rxd8 Rxd8 21. Rf2 h4 22. Rd2 Rxd2 23. Kxd2 Nh5 24. Ke3 Nf4 25. g3 hxg3 26. hxg3 Ng6 27. f4 exf4+ 28. gxf4 Ne7 29. f5+ Kd7 30. Ne5+ Ke8 31. Kf4 f6 32. Nf3 Kd7 33. e5 Nd5+ 34. Ke4 fxe5 35. Nxe5+ Kd6 36. Ng4 Nf6+ 37. Nxf6 gxf6 38. b4 a6 39. a4 a5 40. Kd4 {[%emt 1:46:24]} c5+ {[%emt 1:48:37]} 41. bxc5+ {[%emt 0:00:30]} bxc5+ {[%emt 0:00:30]} 42. Ke4 {[%emt 0:00:30]} Kc6 {[%emt 0:00:30]} 43. c4 {[%emt 0:00:30]} Kd6 {[%emt 0:00:30]} 44. Kf4 {[%emt 0:00:30]} Kd7 {[%emt 0:00:25]} 45. Kg4 {[%emt 0:00:43]} Kd6 {[%emt 0:00:58]} 46. Kh5 {[%emt 0:01:12]} Ke5 {[%emt 0:00:18]} 47. Kg6 {[%emt 0:00:13]} Kd4 {[%emt 0:00:06]} 48. Kxf6 {[%emt 0:00:27]} Kxc4 {[%emt 0:00:06]} 49. Ke5 {[%emt 0:00:24]} Kd3 {[%emt 0:01:02]} 50. f6 {[%emt 0:00:19]} c4 {[%emt 0:00:04]} 51. f7 {[%emt 0:00:14]} c3 {[%emt 0:00:07]} 52. f8=Q {[%emt 0:00:15]} c2 {[%emt 0:01:49]} 53. Qc5 {[%emt 0:00:35]} Kd2 {[%emt 0:00:14]} 54. Qxa5+ {[%emt 0:00:08]} Kd1 {[%emt 0:00:09]} 55. Qc5 {[%emt 0:00:15]} 1-0

[Event "Istanbul Open 2017"]
[Site "Istanbul"]
[Date "2017.09.15"]
[Round "6"]
[White "Inciler, Yusuf Efe"]
[Black "Kilic, Eray"]
[Result "0-1"]
[ECO "B78"]
[WhiteElo "1494"]
[BlackElo "1727"]
[Annotator "NA RC"]
[PlyCount "52"]
[EventDate "2017.??.??"]
[EventType "swiss"]
[EventCountry "TUR"]
[SourceTitle "playchess.com"]
[Source "ChessBase"]
[SourceQuality "1"]
[TimeControl "5400+30"]

1. e4 {[%emt 0:00:30]} c5 {[%emt 0:01:00]} 2. Nf3 {[%emt 0:00:00]} Nc6 {[%emt 0:00:00]} 3. d4 {[%emt 0:00:00]} cxd4 {[%emt 0:00:00]} 4. Nxd4 {[%emt 0:00:00]} g6 {[%emt 0:00:00]} 5. Nc3 {[%emt 0:00:00]} Bg7 {[%emt 0:00:00]} 6. Be3 {[%emt 0:00:00]} Nf6 {[%emt 0:00:00]} 7. Bc4 {[%emt 0:00:00]} O-O {[%emt 0:00:00]} 8. Bb3 {[%emt 0:00:30]} d6 {[%emt 0:00:30]} 9. f3 {[%emt 0:00:30]} Bd7 {[%emt 0:00:30]} 10. Qd2 {[%emt 0:01:30]} Rc8 {[%emt 0:01:30]} 11. O-O-O {[%emt 0:00:30]} a5 {[%emt 0:00:30]} 12. h4 {[%emt 0:00:30]} h5 {[%emt 0:00:30]} 13. Rdg1 {[%emt 0:10:30]} Ne5 {[%emt 0:19:30]} 14. Ndb5 {[%emt 0:17:30]} a4 {[%emt 0:33:30]} 15. Na7 {[%emt 0:06:30]} axb3 {[%emt 0:04:30]} 16. Nxc8 {[%emt 0:00:00]} bxa2 {[%emt 0:00:30]} 17. Nxe7+ {[%emt 0:00:00]} Qxe7 {[%emt 0:00:00]} 18. Nxa2 {[%emt 0:00:30]} Ra8 {[%emt 0:00:00]} 19. Kb1 {[%emt 0:01:30]} Nc4 {[%emt 0:00:30]} 20. Qc3 {[%emt 0:01:30]} Qe6 {[%emt 0:02:30]} 21. Bd4 {[%emt 0:03:30]} Nd2+ {[%emt 0:07:30]} 22. Kc1 {[%emt 0:00:00]} Bh6 {[%emt 0:00:30]} 23. Be3 {[%emt 0:01:00]} Ndxe4 {[%emt 0:00:30]} 24. fxe4 {[%emt 0:00:30]} Nxe4 {[%emt 0:00:30]} 25. Qd4 {[%emt 0:02:30]} Rxa2 {[%emt 0:01:30]} 26. b3 {[%emt 0:01:30]} Bg7 {[%emt 0:00:00]} 0-1

[Event "Istanbul Open 2017"]
[Site "Istanbul"]
[Date "2017.09.11"]
[Round "7"]
[White "Zeydan, Salih"]
[Black "Kirali, Mehmet"]
[Result "1-0"]
[ECO "B11"]
[WhiteElo "2057"]
[BlackElo "1909"]
[Annotator "NA RC"]
[PlyCount "54"]
[EventDate "2017.??.??"]
[EventType "swiss"]
[EventCountry "TUR"]
[SourceTitle "playchess.com"]
[Source "ChessBase"]
[SourceQuality "1"]
[TimeControl "5400+30"]

{[%evp 8,53,81,11,26,7,19,0,8,13,21,-62,-68,-58,21,0,36,32,32,22,31,30,59,58,97,74,70,34,154,137,218,239,224,231,247,237,309,343,565,600,593,647,858,924,916,841,2139,29983]} 1. e4 {[%emt 0:00:30]} c6 {[%emt 0:05:00]} 2. Nc3 {[%emt 0:08:30]} d5 {[%emt 0:00:00]} 3. Nf3 {[%emt 0:00:30]} d4 {[%emt 0:00:00]} 4. Ne2 {[%emt 0:00:30]} c5 {[%emt 0:00:30]} 5. Ng3 {[%emt 0:00:30]} (5. c3 $14) 5... Nc6 {[%emt 0:01:30] LiveBook: 3 Partien B11: Caro-Kann: Two Knights Variation} 6. Bc4 {[%emt 0:11:30]} e6 {[%emt 0:00:30]} 7. c3 $146 {[%emt 0:00:30]} ({Predecessor:} 7. a3 Nf6 8. d3 Bd6 9. Qe2 Qc7 10. O-O O-O 11. Bd2 b6 12. b4 Nd7 13. Rab1 {½-½ (27) Priyadharshan,K (2462)-Menna Barreto,F (2275) Saint Louis 2015}) 7... Nge7 {[%emt 0:02:30]} 8. O-O {[%emt 0:05:30]} a6 {[%emt 0:00:30]} 9. a3 {[%emt 0:03:30]} (9. d3 $11) 9... b5 {[%emt 0:07:30]} 10. Ba2 {[%emt 0:00:30]} Ng6 {[%emt 0:07:30]} ({Black should play} 10... d3 $15) 11. d3 {[%emt 0:02:30]} Be7 {[%emt 0:00:30]} 12. cxd4 {[%emt 0:00:30]} Nxd4 {[%emt 0:06:30]} 13. Nxd4 {[%emt 0:02:30]} Qxd4 {[%emt 0:02:30]} 14. Qe2 {[%emt 0:01:30]} Bb7 {[%emt 0:01:30]} 15. Be3 {[%emt 0:02:30]} Qd7 {[%emt 0:00:30]} 16. f4 {[%emt 0:01:30]} O-O {[%emt 0:00:30]} 17. Rad1 {[%emt 0:02:30]} (17. f5 $16) 17... Rae8 {[%emt 0:13:30]} (17... Nh4 $14) 18. f5 {[%emt 0:03:30]} exf5 {[%emt 0:06:30]} (18... Ne5 $16 {keeps fighting.}) 19. Nxf5 {[%emt 0:09:30]} c4 {[%emt 0:05:30]} 20. dxc4 {[%emt 0:04:30]} Qe6 {[%emt 0:06:30]} 21. Nxe7+ {[%emt 0:04:30]} Nxe7 {[%emt 0:01:30]} (21... Qxe7 $142 22. cxb5 Qxe4) 22. Bc5 {[%emt 0:01:30]} Rc8 {[%emt 0:04:30]} (22... b4 $142 23. axb4 Rd8) 23. b4 {[%emt 0:02:30]} Rxc5 {[%emt 0:00:30]} 24. bxc5 {[%emt 0:00:30]} Qc6 {[%emt 0:03:30]} 25. cxb5 {[%emt 0:01:30]} Qxc5+ {[%emt 0:01:30]} 26. Kh1 {[%emt 0:00:30]} axb5 {[%emt 0:03:27] [#]} 27. Rxf7 {[%emt 0:00:30]} Rxf7 {[%emt 0:01:00]} 1-0